fUSD/lending_fUSD_20260605
["ID","MTS","AMOUNT","RATE_DAILY","PERIOD"]
[424121794,1780601498000,-3132.24,0.00038027,11]
[424121793,1780601498000,-500.0,0.00038027,11]
[424121795,1780601498000,-4507.46,0.00038027,11]
[424121801,1780601498000,-500.0,0.00038027,11]
[424121798,1780601498000,-603.9,0.00038027,11]
[424121805,1780601498000,-534.99,0.00038027,11]
[424121804,1780601498000,-500.0,0.00038027,3]
[424121800,1780601498000,-500.0,0.00038027,11]
[424121808,1780601498000,-500.0,0.00038027,11]
[424121797,1780601498000,-500.0,0.00038027,11]
[424121802,1780601498000,-500.0,0.00038027,11]
[424121803,1780601498000,-500.0,0.00038027,11]
[424121792,1780601498000,-500.0,0.00038027,11]
[424121844,1780601498000,-500.0,0.00038027,11]
[424121809,1780601498000,-500.0,0.00038027,11]
[424121842,1780601498000,-557.93204171,0.00038027,11]
[424121877,1780601498000,-500.0,0.00038027,11]
[424121875,1780601498000,-500.0,0.00038027,11]
[424121902,1780601498000,-1409.17,0.00038027,11]
[424121876,1780601498000,-3576.93,0.00038027,11]
[424121880,1780601498000,-776.36,0.00038027,11]
[424121883,1780601498000,-501.22,0.00038027,11]
[424121884,1780601498000,-4506.51,0.00038027,11]
[424121879,1780601498000,-500.0,0.00038027,11]
[424121882,1780601498000,-639.13,0.00038027,11]
[424121878,1780601498000,-545.79,0.00038027,11]
[424121881,1780601498000,-509.94,0.00038027,11]
[424121886,1780601498000,-500.0,0.00038027,11]
[424121897,1780601498000,-848.37,0.00038027,11]
[424121874,1780601498000,-500.0,0.00038027,11]
[424121896,1780601498000,-501.58,0.00038027,11]
[424121889,1780601498000,-500.0,0.00038027,11]
[424121887,1780601498000,-500.0,0.00038027,11]
[424121890,1780601498000,-545.01,0.00038027,11]
[424121885,1780601498000,-3838.41,0.00038027,11]
[424121893,1780601498000,-500.0,0.00038027,11]
[424121891,1780601498000,-500.0,0.00038027,11]
[424121894,1780601498000,-1021.72,0.00038027,11]
[424121892,1780601498000,-621.19,0.00038027,11]
[424121899,1780601498000,-500.0,0.00038027,11]
[424121898,1780601498000,-3578.37,0.00038027,11]
[424121901,1780601498000,-3295.91,0.00038027,11]
[424121900,1780601498000,-542.01,0.00038027,11]
[424121840,1780601498000,-500.0,0.00038027,11]
[424121888,1780601498000,-500.0,0.00038027,11]
[424121871,1780601498000,-681.44,0.00038027,11]
[424121895,1780601498000,-926.27,0.00038027,11]
[424121868,1780601498000,-500.0,0.00038027,11]
[424121869,1780601498000,-500.0,0.00038027,11]
[424121839,1780601498000,-500.0,0.00038027,11]
[424121843,1780601498000,-500.0,0.00038027,11]
[424121837,1780601498000,-3965.92,0.00038027,11]
[424121847,1780601498000,-4258.42,0.00038027,11]
[424121846,1780601498000,-500.0,0.00038027,11]
[424121848,1780601498000,-783.25,0.00038027,7]
[424121850,1780601498000,-500.0,0.00038027,11]
[424121851,1780601498000,-500.0,0.00038027,11]
[424121855,1780601498000,-500.0,0.00038027,11]
[424121853,1780601498000,-500.0,0.00038027,11]
[424121854,1780601498000,-3018.08,0.00038027,11]
[424121849,1780601498000,-500.0,0.00038027,11]
[424121856,1780601498000,-2893.01,0.00038027,11]
[424121845,1780601498000,-671.79,0.00038027,11]
[424121857,1780601498000,-625.17,0.00038027,11]
[424121867,1780601498000,-500.0,0.00038027,11]
[424121858,1780601498000,-500.0,0.00038027,11]
[424121870,1780601498000,-500.0,0.00038027,11]
[424121866,1780601498000,-995.33,0.00038027,10]
[424121861,1780601498000,-500.0,0.00038027,11]
[424121865,1780601498000,-3043.72,0.00038027,11]
[424121872,1780601498000,-4030.2,0.00038027,11]
[424121864,1780601498000,-5547.5,0.00038027,11]
[424121873,1780601498000,-500.0,0.00038027,11]
[424121862,1780601498000,-781.98,0.00038027,11]
[424121860,1780601498000,-4066.44,0.00038027,11]
[424121859,1780601498000,-4217.58,0.00038027,11]
[424121852,1780601498000,-605.1,0.00038027,11]
[424121863,1780601498000,-569.6,0.00038027,11]
[424121927,1780601499000,-825.24,0.00038027,11]
[424121929,1780601499000,-552.27,0.00038027,11]
[424121935,1780601499000,-500.0,0.00038027,11]
[424121930,1780601499000,-500.0,0.00038027,11]
[424121928,1780601499000,-500.0,0.00038027,11]
[424121925,1780601499000,-500.0,0.00038027,11]
[424121931,1780601499000,-500.0,0.00038027,11]
[424121932,1780601499000,-3584.09,0.00038027,11]
[424121933,1780601499000,-1738.5,0.00038027,11]
[424121944,1780601499000,-500.0,0.00038027,11]
[424121941,1780601499000,-500.0,0.00038027,11]
[424121936,1780601499000,-500.0,0.00038027,11]
[424121937,1780601499000,-500.0,0.00038027,11]
[424121938,1780601499000,-48578.89,0.00038027,11]
[424121945,1780601499000,-3142.83,0.00038027,11]
[424121943,1780601499000,-2267.8,0.00038027,11]
[424121942,1780601499000,-409.80907094,0.00038027,11]
[424121939,1780601499000,-713.95,0.00038027,11]
[424121934,1780601499000,-3333.17,0.00038027,11]
[424121940,1780601499000,-535.7,0.00038027,11]
[424121946,1780601499000,-500.0,0.00038027,11]
[424121923,1780601499000,-3100.56,0.00038027,11]
[424121911,1780601499000,-3281.1,0.00038027,11]
[424121926,1780601499000,-500.0,0.00038027,11]
[424121947,1780601499000,-4227.65,0.00038027,11]
[424121909,1780601499000,-621.98,0.00038027,11]
[424121903,1780601499000,-500.0,0.00038027,11]
[424121905,1780601499000,-500.0,0.00038027,11]
[424121904,1780601499000,-500.0,0.00038027,11]
[424121906,1780601499000,-500.0,0.00038027,11]
[424121907,1780601499000,-500.0,0.00038027,11]
[424121908,1780601499000,-500.0,0.00038027,11]
[424121920,1780601499000,-500.0,0.00038027,11]
[424121924,1780601499000,-166.97422533,0.00038027,11]
[424121919,1780601499000,-500.0,0.00038027,11]
[424121913,1780601499000,-2571.81,0.00038027,11]
[424121922,1780601499000,-541.06,0.00038027,11]
[424121912,1780601499000,-500.0,0.00038027,11]
[424121915,1780601499000,-4100.24,0.00038027,11]
[424121910,1780601499000,-500.0,0.00038027,11]
[424121914,1780601499000,-661.28,0.00038027,11]
[424121916,1780601499000,-632.6,0.00038027,11]
[424121917,1780601499000,-500.0,0.00038027,11]
[424121918,1780601499000,-500.0,0.00038027,11]
[424121921,1780601499000,-500.0,0.00038027,11]
[424121953,1780601499000,-2945.38,0.00038027,11]
[424121968,1780601499000,-500.0,0.00038027,11]
[424121950,1780601499000,-500.0,0.00038027,11]
[424121973,1780601499000,-648.32,0.00038027,11]
[424121976,1780601499000,-2310.7,0.00038027,11]
[424121975,1780601499000,-500.0,0.00038027,11]
[424121977,1780601499000,-2739.7,0.00038027,11]
[424121980,1780601499000,-500.0,0.00038027,11]
[424121978,1780601499000,-500.0,0.00038027,11]
[424121983,1780601499000,-3854.17,0.00038027,11]
[424121993,1780601499000,-500.0,0.00038027,11]
[424121955,1780601499000,-500.0,0.00038027,11]
[424121984,1780601499000,-3770.98,0.00038027,11]
[424121982,1780601499000,-500.0,0.00038027,11]
[424121985,1780601499000,-653.83,0.00038027,11]
[424121990,1780601499000,-1928.99,0.00038027,11]
[424121987,1780601499000,-500.0,0.00038027,11]
[424121989,1780601499000,-43853.29,0.00038027,11]
[424121992,1780601499000,-592.72,0.00038027,11]
[424121986,1780601499000,-245.00555189,0.00038027,11]
[424121991,1780601499000,-233.08476212,0.00038027,11]
[424121988,1780601499000,-4273.71,0.00038027,11]
[424121995,1780601499000,-6161.84,0.00038027,11]
[424121996,1780601499000,-2998.09,0.00038027,11]
[424121979,1780601499000,-500.0,0.00038027,11]
[424121970,1780601499000,-500.0,0.00038027,11]
[424121994,1780601499000,-500.0,0.00038027,11]
[424121971,1780601499000,-500.0,0.00038027,11]
[424121952,1780601499000,-500.0,0.00038027,11]
[424121974,1780601499000,-2885.57,0.00038027,11]
[424121948,1780601499000,-500.0,0.00038027,11]
[424121951,1780601499000,-573.0,0.00038027,11]
[424121954,1780601499000,-2309.83,0.00038027,11]
[424121949,1780601499000,-549.95,0.00038027,11]
[424121956,1780601499000,-3144.3,0.00038027,11]
[424121969,1780601499000,-500.0,0.00038027,11]
[424121960,1780601499000,-500.0,0.00038027,11]
[424121966,1780601499000,-500.0,0.00038027,11]
[424121957,1780601499000,-500.0,0.00038027,11]
[424121965,1780601499000,-4685.79,0.00038027,11]
[424121981,1780601499000,-916.33,0.00038027,11]
[424121962,1780601499000,-3552.5,0.00038027,11]
[424121967,1780601499000,-204.98029672,0.00038027,11]
[424121958,1780601499000,-1732.11,0.00038027,11]
[424121972,1780601499000,-500.0,0.00038027,11]
[424121963,1780601499000,-500.0,0.00038027,11]
[424121964,1780601499000,-7717.08,0.00038027,11]
[424121961,1780601499000,-1050.92,0.00038027,11]
[424121959,1780601499000,-500.0,0.00038027,11]
[424122010,1780601500000,-3497.51,0.00038027,11]
[424122017,1780601500000,-555.64414472,0.00038027,11]
[424122014,1780601500000,-1070.68,0.00038027,11]
[424122016,1780601500000,-4478.44,0.00038027,11]
[424122015,1780601500000,-500.0,0.00038027,11]
[424122012,1780601500000,-500.0,0.00038027,11]
[424122013,1780601500000,-500.0,0.00038027,11]
[424122011,1780601500000,-500.0,0.00038027,11]
[424122007,1780601500000,-3412.16,0.00038027,11]
[424121998,1780601500000,-500.0,0.00038027,11]
[424122006,1780601500000,-296.84510907,0.00038027,2]
[424122008,1780601500000,-500.0,0.00038027,11]
[424122005,1780601500000,-1581.21,0.00038027,11]
[424122003,1780601500000,-974.44,0.00038027,11]
[424122002,1780601500000,-500.0,0.00038027,11]
[424122001,1780601500000,-2870.25,0.00038027,11]
[424121999,1780601500000,-500.0,0.00038027,11]
[424122000,1780601500000,-593.81,0.00038027,11]
[424121997,1780601500000,-1586.97,0.00038027,11]
[424122019,1780601500000,-500.0,0.00038027,11]
[424122004,1780601500000,-3421.72,0.00038027,11]
[424122018,1780601500000,-500.0,0.00038027,11]
[424122009,1780601500000,-500.0,0.00038027,11]
[424122021,1780601500000,-7481.71,0.00038027,11]
[424122029,1780601500000,-3691.76,0.00038027,11]
[424122042,1780601500000,-2036.67076267,0.00038027,11]
[424122037,1780601500000,-2564.12,0.00038027,11]
[424122038,1780601500000,-6291.69,0.00038027,11]
[424122032,1780601500000,-587.86,0.00038027,11]
[424122040,1780601500000,-4272.54,0.00038027,11]
[424122041,1780601500000,-959.65,0.00038027,11]
[424122036,1780601500000,-3101.67,0.00038027,11]
[424122039,1780601500000,-41097.1,0.00038027,11]
[424122035,1780601500000,-500.0,0.00038027,11]
[424122034,1780601500000,-500.0,0.00038027,11]
[424122031,1780601500000,-500.0,0.00038027,11]
[424122033,1780601500000,-500.0,0.00038027,11]
[424122027,1780601500000,-500.0,0.00038027,11]
[424122023,1780601500000,-500.0,0.00038027,11]
[424122025,1780601500000,-793.97,0.00038027,11]
[424122026,1780601500000,-500.0,0.00038027,11]
[424122020,1780601500000,-500.0,0.00038027,11]
[424122024,1780601500000,-597.33,0.00038027,11]
[424122028,1780601500000,-3298.28,0.00038027,11]
[424122030,1780601500000,-2494.03,0.00038027,11]
[424122022,1780601500000,-3863.44,0.00038027,11]
[424122051,1780601501000,-500.0,0.00038027,11]
[424122043,1780601501000,-1592.31923733,0.00038027,11]
[424122046,1780601501000,-2923.68,0.00038027,11]
[424122045,1780601501000,-500.0,0.00038027,11]
[424122048,1780601501000,-500.0,0.00038027,11]
[424122044,1780601501000,-500.0,0.00038027,11]
[424122047,1780601501000,-500.0,0.00038027,11]
[424122049,1780601501000,-500.0,0.00038027,11]
[424122050,1780601501000,-2613.9,0.00038027,11]
[424122053,1780601501000,-397.29922135,0.00038027,11]
[424122063,1780601501000,-308.65898511,0.00038027,11]
[424122055,1780601501000,-500.0,0.00038027,11]
[424122054,1780601501000,-500.0,0.00038027,11]
[424122056,1780601501000,-633.39327334,0.00038027,11]
[424122057,1780601501000,-23.07672666,0.00038027,11]
[424122058,1780601501000,-609.55487542,0.00038027,11]
[424122059,1780601501000,-363.30424634,0.00038027,11]
[424122061,1780601501000,-583.89290251,0.00038027,11]
[424122060,1780601501000,-2629.08087824,0.00038027,11]
[424122062,1780601501000,-500.0,0.00038027,11]
[424122064,1780601501000,-791.61,0.00037808,11]
[424122052,1780601501000,-500.0,0.00038027,11]
[424122067,1780601502000,-253.88826761,0.00016187,7]
[424122065,1780601502000,-489.16413379,0.00015609,7]
[424122068,1780601502000,-10294.47925321,0.00027397,10]
[424122069,1780601502000,-187.72914473,0.00016438,2]
[424122070,1780601502000,-1264.87003058,0.00027397,10]
[424122071,1780601502000,-2044.52181504,0.00027397,10]
[424122073,1780601502000,-580.31199992,0.00027397,10]
[424122066,1780601502000,-235.27586621,0.00016187,7]
[424122072,1780601502000,-500.0,0.00016904,2]
[424122075,1780601503000,-500.0,0.0001481,2]
[424122080,1780601503000,-1671.37379998,0.00015125,2]
[424122082,1780601503000,-649.7303499,0.00015125,2]
[424122081,1780601503000,-319.26,0.00015125,2]
[424122079,1780601503000,-363738.96705907,0.00015125,2]
[424122077,1780601503000,-500.0,0.00014999,2]
[424122078,1780601503000,-284.66230357,0.00014999,2]
[424122076,1780601503000,-500.0,0.00014892,2]
[424122074,1780601503000,152.0,0.00029797,120]
[424122102,1780601504000,-500.0,0.00037863,11]
[424122105,1780601504000,-500.0,0.00037972,11]
[424122115,1780601504000,-2130.73,0.00038027,11]
[424122103,1780601504000,-500.0,0.00037917,11]
[424122110,1780601504000,-500.0,0.00038027,11]
[424122101,1780601504000,-500.0,0.00037863,11]
[424122107,1780601504000,-414.23101489,0.00038027,11]
[424122117,1780601504000,-508.18,0.00038027,11]
[424122108,1780601504000,-500.0,0.00038027,11]
[424122113,1780601504000,-500.0,0.00038027,11]
[424122111,1780601504000,-500.0,0.00038027,11]
[424122114,1780601504000,-500.0,0.00038027,11]
[424122112,1780601504000,-500.0,0.00038027,11]
[424122106,1780601504000,-5135.52,0.00037972,11]
[424122116,1780601504000,-500.0,0.00038027,11]
[424122109,1780601504000,-5497.17,0.00038027,11]
[424122104,1780601504000,-5135.52,0.00037917,11]
[424122093,1780601504000,-3552.0,0.00027798,2]
[424122099,1780601504000,-500.0,0.00037808,11]
[424122083,1780601504000,-1630.47336592,0.00015125,2]
[424122084,1780601504000,-53516.84542513,0.00015125,2]
[424122086,1780601504000,-500.0,0.00016904,2]
[424122085,1780601504000,-152.0,0.00015861,2]
[424122087,1780601504000,-500.0,0.00016904,2]
[424122089,1780601504000,-14041.74,0.00019149,2]
[424122090,1780601504000,-610.0,0.0002,2]
[424122091,1780601504000,-3552.0,0.00024798,2]
[424122094,1780601504000,-152.0,0.00028375,30]
[424122095,1780601504000,-1994.03,0.00028429,2]
[424122088,1780601504000,-500.0,0.00016904,2]
[424122098,1780601504000,-500.0,0.00037808,11]
[424122092,1780601504000,-8505.57690125,0.00027397,10]
[424122097,1780601504000,-4343.91,0.00037808,11]
[424122096,1780601504000,-3552.0,0.00030798,2]
[424122100,1780601504000,-5135.52,0.00037863,11]
[424122118,1780601504000,-4640.83,0.00038027,7]
[424122120,1780601504000,-500.0,0.00038027,11]
[424122121,1780601504000,-3130.72,0.00038027,11]
[424122140,1780601504000,-708.12,0.00038027,11]
[424122141,1780601504000,-3506.05,0.00038027,11]
[424122143,1780601504000,-500.0,0.00038027,11]
[424122151,1780601504000,-3700.19,0.00038027,11]
[424122154,1780601504000,-703.95,0.00038027,11]
[424122146,1780601504000,-3206.05,0.00038027,11]
[424122145,1780601504000,-10062.37,0.00038027,11]
[424122147,1780601504000,-767.28,0.00038027,11]
[424122144,1780601504000,-4957.77,0.00038027,11]
[424122155,1780601504000,-621.46135766,0.00038027,11]
[424122148,1780601504000,-500.0,0.00038027,11]
[424122153,1780601504000,-3482.81,0.00038027,11]
[424122150,1780601504000,-641.36486154,0.00038027,11]
[424122152,1780601504000,-6030.88,0.00038027,11]
[424122119,1780601504000,-500.0,0.00038027,11]
[424122135,1780601504000,-500.0,0.00038027,11]
[424122138,1780601504000,-500.0,0.00038027,11]
[424122149,1780601504000,-3955.78,0.00038027,11]
[424122142,1780601504000,-1186.26,0.00038027,11]
[424122123,1780601504000,-2954.3,0.00038027,11]
[424122139,1780601504000,-6476.77,0.00038027,11]
[424122125,1780601504000,-500.0,0.00038027,11]
[424122122,1780601504000,-9003.1,0.00038027,11]
[424122131,1780601504000,-4849.2,0.00038027,11]
[424122124,1780601504000,-500.0,0.00038027,11]
[424122128,1780601504000,-500.0,0.00038027,11]
[424122126,1780601504000,-3247.99,0.00038027,11]
[424122130,1780601504000,-500.0,0.00038027,11]
[424122127,1780601504000,-713.22,0.00038027,11]
[424122132,1780601504000,-3194.54,0.00038027,11]
[424122136,1780601504000,-12962.22,0.00038027,11]
[424122137,1780601504000,-500.0,0.00038027,11]
[424122133,1780601504000,-500.0,0.00038027,11]
[424122129,1780601504000,-4335.39,0.00038027,11]
[424122134,1780601504000,-500.0,0.00038027,11]
[424122199,1780601505000,-500.0,0.00038027,11]
[424122195,1780601505000,-517.01,0.00038027,11]
[424122197,1780601505000,-500.0,0.00038027,11]
[424122194,1780601505000,-500.0,0.00038027,11]
[424122193,1780601505000,-406.27791198,0.00038027,2]
[424122203,1780601505000,-4437.46,0.00038027,11]
[424122188,1780601505000,-5007.02,0.00038027,11]
[424122189,1780601505000,-2459.84,0.00038027,11]
[424122190,1780601505000,-5423.05,0.00038027,11]
[424122200,1780601505000,-3481.52,0.00038027,11]
[424122187,1780601505000,-500.0,0.00038027,11]
[424122192,1780601505000,-500.0,0.00038027,11]
[424122196,1780601505000,-7766.08,0.00038027,11]
[424122205,1780601505000,-3282.67,0.00038027,11]
[424122202,1780601505000,-3078.36,0.00038027,11]
[424122201,1780601505000,-2027.44,0.00038027,11]
[424122204,1780601505000,-3044.93,0.00038027,11]
[424122207,1780601505000,-4633.15,0.00038027,11]
[424122208,1780601505000,-500.0,0.00038027,11]
[424122209,1780601505000,-500.0,0.00038027,11]
[424122206,1780601505000,-747.82,0.00038027,11]
[424122211,1780601505000,-557.35403745,0.00038027,11]
[424122214,1780601505000,-500.0,0.00038027,11]
[424122215,1780601505000,-500.0,0.00038027,11]
[424122210,1780601505000,-3116.77,0.00038027,11]
[424122182,1780601505000,-13429.98,0.00038027,11]
[424122198,1780601505000,-500.0,0.00038027,11]
[424122181,1780601505000,-2505.4,0.00038027,11]
[424122169,1780601505000,-12140.75,0.00038027,11]
[424122186,1780601505000,-6570.12,0.00038027,11]
[424122158,1780601505000,-712.64,0.00038027,11]
[424122159,1780601505000,-1667.72,0.00038027,11]
[424122165,1780601505000,-726.28,0.00038027,11]
[424122166,1780601505000,-556.89,0.00038027,11]
[424122161,1780601505000,-1888.13,0.00038027,11]
[424122157,1780601505000,-1219.17,0.00038027,2]
[424122160,1780601505000,-500.0,0.00038027,11]
[424122162,1780601505000,-500.0,0.00038027,11]
[424122213,1780601505000,-4949.56,0.00038027,11]
[424122164,1780601505000,-500.0,0.00038027,11]
[424122167,1780601505000,-6615.41,0.00038027,11]
[424122179,1780601505000,-3783.59,0.00038027,11]
[424122185,1780601505000,-500.0,0.00038027,11]
[424122168,1780601505000,-601.18,0.00038027,11]
[424122170,1780601505000,-9202.56,0.00038027,11]
[424122171,1780601505000,-500.0,0.00038027,11]
[424122178,1780601505000,-5875.4,0.00038027,11]
[424122176,1780601505000,-4537.95,0.00038027,11]
[424122177,1780601505000,-500.0,0.00038027,11]
[424122175,1780601505000,-525.84,0.00038027,11]
[424122173,1780601505000,-500.0,0.00038027,11]
[424122174,1780601505000,-500.0,0.00038027,11]
[424122156,1780601505000,-3164.55,0.00038027,11]
[424122184,1780601505000,-500.0,0.00038027,11]
[424122191,1780601505000,-17039.12,0.00038027,11]
[424122183,1780601505000,-9770.76,0.00038027,11]
[424122172,1780601505000,-5563.16,0.00038027,11]
[424122212,1780601505000,-316.73976176,0.00038027,2]
[424122163,1780601505000,-4852.79,0.00038027,11]
[424122226,1780601505000,-500.0,0.00038027,11]
[424122251,1780601505000,-500.0,0.00038082,11]
[424122249,1780601505000,-548.66723553,0.00038082,11]
[424122248,1780601505000,-502.32487565,0.00038082,11]
[424122250,1780601505000,-500.0,0.00038082,11]
[424122244,1780601505000,-500.0,0.00038027,11]
[424122254,1780601505000,-500.0,0.00038082,11]
[424122255,1780601505000,-500.0,0.00038082,11]
[424122257,1780601505000,-568.16,0.00038082,11]
[424122258,1780601505000,-500.0,0.00038082,11]
[424122256,1780601505000,-500.0,0.00038082,11]
[424122260,1780601505000,-500.0,0.00038082,11]
[424122264,1780601505000,-688.44,0.00038082,11]
[424122259,1780601505000,-616.25,0.00038082,11]
[424122263,1780601505000,-511.09,0.00038082,11]
[424122262,1780601505000,-500.0,0.00038082,11]
[424122261,1780601505000,-500.0,0.00038082,11]
[424122271,1780601505000,-500.0,0.00038082,11]
[424122273,1780601505000,-500.0,0.00038082,11]
[424122270,1780601505000,-596.22822493,0.00038082,11]
[424122266,1780601505000,-500.0,0.00038082,11]
[424122267,1780601505000,-500.0,0.00038082,11]
[424122265,1780601505000,-500.0,0.00038082,11]
[424122272,1780601505000,-500.0,0.00038082,11]
[424122269,1780601505000,-1492.75,0.00038082,11]
[424122268,1780601505000,-500.0,0.00038082,11]
[424122274,1780601505000,-500.0,0.00038082,11]
[424122217,1780601505000,-6100.12,0.00038027,11]
[424122246,1780601505000,-154.23,0.0003806,60]
[424122252,1780601505000,-500.0,0.00038082,11]
[424122180,1780601505000,-670.03,0.00038027,11]
[424122245,1780601505000,-300.0,0.00038038,48]
[424122228,1780601505000,-30187.66,0.00038027,11]
[424122216,1780601505000,-8589.49,0.00038027,11]
[424122227,1780601505000,-4819.14,0.00038027,11]
[424122225,1780601505000,-500.0,0.00038027,11]
[424122221,1780601505000,-500.0,0.00038027,11]
[424122220,1780601505000,-3898.57,0.00038027,11]
[424122219,1780601505000,-1544.44,0.00038027,2]
[424122218,1780601505000,-500.0,0.00038027,11]
[424122224,1780601505000,-500.0,0.00038027,11]
[424122222,1780601505000,-3206.55,0.00038027,11]
[424122223,1780601505000,-528.67,0.00038027,11]
[424122229,1780601505000,-500.0,0.00038027,11]
[424122234,1780601505000,-500.0,0.00038027,11]
[424122247,1780601505000,-630.74710949,0.00038081,11]
[424122232,1780601505000,-500.0,0.00038027,11]
[424122242,1780601505000,-500.0,0.00038027,11]
[424122243,1780601505000,-5135.52,0.00038027,11]
[424122253,1780601505000,-500.0,0.00038082,11]
[424122239,1780601505000,-500.0,0.00038027,11]
[424122231,1780601505000,-2031.04,0.00038027,11]
[424122236,1780601505000,-500.0,0.00038027,11]
[424122237,1780601505000,-5437.74,0.00038027,11]
[424122238,1780601505000,-500.0,0.00038027,11]
[424122241,1780601505000,-500.0,0.00038027,11]
[424122240,1780601505000,-7369.94,0.00038027,11]
[424122233,1780601505000,-1001.46,0.00038027,11]
[424122230,1780601505000,-872.03,0.00038027,2]
[424122235,1780601505000,-500.0,0.00038027,11]
[424122323,1780601506000,-500.0,0.00038082,11]
[424122313,1780601506000,-500.0,0.00038082,11]
[424122305,1780601506000,-500.0,0.00038082,11]
[424122310,1780601506000,-500.0,0.00038082,11]
[424122306,1780601506000,-500.0,0.00038082,11]
[424122309,1780601506000,-500.0,0.00038082,11]
[424122308,1780601506000,-734.23,0.00038082,11]
[424122303,1780601506000,-500.0,0.00038082,11]
[424122307,1780601506000,-608.41,0.00038082,11]
[424122312,1780601506000,-847.5,0.00038082,11]
[424122300,1780601506000,-589.82,0.00038082,11]
[424122317,1780601506000,-834.84,0.00038082,11]
[424122322,1780601506000,-534.52,0.00038082,11]
[424122316,1780601506000,-500.0,0.00038082,11]
[424122318,1780601506000,-500.0,0.00038082,11]
[424122321,1780601506000,-500.0,0.00038082,11]
[424122319,1780601506000,-500.0,0.00038082,11]
[424122320,1780601506000,-500.0,0.00038082,11]
[424122324,1780601506000,-500.0,0.00038082,11]
[424122329,1780601506000,-500.0,0.00038082,11]
[424122325,1780601506000,-500.0,0.00038082,11]
[424122326,1780601506000,-500.0,0.00038082,11]
[424122328,1780601506000,-500.0,0.00038082,11]
[424122327,1780601506000,-590.71,0.00038082,11]
[424122304,1780601506000,-500.0,0.00038082,11]
[424122314,1780601506000,-500.0,0.00038082,11]
[424122302,1780601506000,-500.0,0.00038082,11]
[424122299,1780601506000,-513.78,0.00038082,11]
[424122311,1780601506000,-500.0,0.00038082,11]
[424122275,1780601506000,-500.0,0.00038082,11]
[424122276,1780601506000,-824.61,0.00038082,11]
[424122278,1780601506000,-500.0,0.00038082,11]
[424122279,1780601506000,-500.0,0.00038082,11]
[424122277,1780601506000,-500.0,0.00038082,11]
[424122284,1780601506000,-500.0,0.00038082,11]
[424122280,1780601506000,-321.89358588,0.00038082,11]
[424122281,1780601506000,-500.0,0.00038082,11]
[424122282,1780601506000,-500.0,0.00038082,11]
[424122283,1780601506000,-500.0,0.00038082,11]
[424122285,1780601506000,-544.18,0.00038082,11]
[424122287,1780601506000,-500.0,0.00038082,11]
[424122286,1780601506000,-500.0,0.00038082,11]
[424122334,1780601506000,-500.0,0.00038082,11]
[424122297,1780601506000,-500.0,0.00038082,11]
[424122289,1780601506000,-500.0,0.00038082,11]
[424122288,1780601506000,-603.34,0.00038082,11]
[424122290,1780601506000,-500.0,0.00038082,11]
[424122291,1780601506000,-500.0,0.00038082,11]
[424122298,1780601506000,-500.0,0.00038082,11]
[424122293,1780601506000,-608.17,0.00038082,11]